fUSD/lending_fUSD_20250724
["ID","MTS","AMOUNT","RATE_DAILY","PERIOD"]
[374485712,1753319457755,-1347.12917,0.00021917,2]
[374485713,1753319457765,-358.86678594,0.00021917,2]
[374485714,1753319457774,-1249.530377,0.00021917,2]
[374485715,1753319457784,-400.0,0.00021917,2]
[374485716,1753319457794,-1347.12917,0.00021917,2]
[374485717,1753319457806,-1249.530377,0.00021917,2]
[374485718,1753319457816,-1249.530377,0.00021917,2]
[374485719,1753319457826,-1249.530377,0.00021917,2]
[374485720,1753319457837,-710.09,0.00021917,2]
[374485721,1753319457847,-1347.12917,0.00021917,2]
[374485722,1753319457857,-400.0,0.00021917,2]
[374485723,1753319457867,-400.0,0.00021917,2]
[374485724,1753319457878,-1347.12917,0.00021917,2]
[374485725,1753319457887,-1347.12917,0.00021917,2]
[374485726,1753319457897,-520.76,0.00021917,2]
[374485727,1753319457907,-534.25790313,0.00021917,2]
[374485728,1753319457917,-966.39,0.00021917,2]
[374485729,1753319457927,-400.0,0.00021917,2]
[374485730,1753319457937,-400.0,0.00021917,2]
[374485731,1753319457947,-3193.87,0.00021917,2]
[374485732,1753319457957,-1262.436461,0.00021917,2]
[374485733,1753319457969,-1262.436461,0.00021917,2]
[374485734,1753319457979,-1262.436461,0.00021917,2]
[374485735,1753319457989,-1262.436461,0.00021917,2]
[374485736,1753319457999,-400.0,0.00021917,2]
[374485737,1753319458011,-1262.436461,0.00021917,2]
[374485738,1753319458021,-1262.436461,0.00021917,2]
[374485739,1753319458032,-1262.436461,0.00021917,2]
[374485740,1753319458043,-2765.02,0.00021917,2]
[374485741,1753319458055,-2765.02,0.00021917,2]
[374485742,1753319458065,-460.0,0.00021917,2]
[374485743,1753319458075,-1014.27,0.00021917,2]
[374485744,1753319458086,-364.88160793,0.00021917,2]
[374485745,1753319458098,-400.0,0.00021917,2]
[374485746,1753319458108,-400.0,0.00021917,2]
[374485747,1753319458119,-1183.78,0.00021917,2]
[374485748,1753319458129,-754.93,0.00021917,2]
[374485749,1753319458139,-400.0,0.00021917,2]
[374485750,1753319458149,-400.0,0.00021917,2]
[374485751,1753319458160,-400.0,0.00021917,2]
[374485752,1753319458170,-400.0,0.00021917,2]
[374485753,1753319458179,-400.0,0.00021917,2]
[374485754,1753319458189,-400.0,0.00021917,2]
[374485755,1753319458199,-400.0,0.00021917,2]
[374485756,1753319458208,-524.39,0.00021917,2]
[374485757,1753319458219,-969.06,0.00021917,2]
[374485758,1753319458228,-400.0,0.00021917,2]
[374485759,1753319458238,-400.0,0.00021917,2]
[374485760,1753319458248,-400.0,0.00021917,2]
[374485761,1753319458258,-400.0,0.00021917,2]
[374485762,1753319458271,-151.0,0.00021917,2]
[374485763,1753319458280,-400.0,0.00021917,2]
[374485764,1753319458289,-489.54168276,0.00021917,2]
[374485765,1753319458299,-151.0,0.00021917,2]
[374485766,1753319458311,-151.0,0.00021917,2]
[374485767,1753319458321,-151.0,0.00021917,2]
[374485768,1753319458331,-151.0,0.00021917,2]
[374485769,1753319458340,-1180.49,0.00021917,2]
[374485770,1753319458352,-400.0,0.00021917,2]
[374485771,1753319458362,-1178.49,0.00021917,2]
[374485772,1753319458372,-151.0,0.00021917,2]
[374485773,1753319458382,-400.0,0.00021917,2]
[374485774,1753319458391,-151.0,0.00021917,2]
[374485775,1753319458401,-151.0,0.00021917,2]
[374485776,1753319458411,-400.0,0.00021917,2]
[374485777,1753319458421,-400.0,0.00021917,2]
[374485778,1753319458786,-592.27,0.00021917,2]
[374485779,1753319458807,-400.0,0.00021917,2]
[374485780,1753319458817,-1491.94,0.00021917,2]
[374485781,1753319458827,-151.0,0.00021917,2]
[374485782,1753319458837,-238.926,0.00021917,2]
[374485783,1753319458847,-450.62,0.00021917,2]
[374485784,1753319458856,-400.0,0.00021917,2]
[374485785,1753319458867,-614.02,0.00021917,2]
[374485786,1753319458876,-851.36,0.00021917,2]
[374485787,1753319458885,-815.01,0.00021917,2]
[374485788,1753319458895,-460.0,0.00021917,2]
[374485789,1753319458905,-400.0,0.00021917,2]
[374485790,1753319458914,-746.37,0.00021917,2]
[374485791,1753319458924,-400.0,0.00021917,2]
[374485792,1753319458933,-416.87,0.00021917,2]
[374485793,1753319458943,-1412.95,0.00021917,2]
[374485794,1753319458953,-400.0,0.00021917,2]
[374485795,1753319458962,-400.0,0.00021917,2]
[374485796,1753319458972,-400.0,0.00021917,2]
[374485797,1753319458981,-400.0,0.00021917,2]
[374485798,1753319458990,-2115.41,0.00021917,2]
[374485799,1753319459000,-400.0,0.00021917,2]
[374485800,1753319459009,-400.0,0.00021917,2]
[374485801,1753319459018,-400.0,0.00021917,2]
[374485802,1753319459028,-440.0,0.00021917,2]
[374485803,1753319459037,-400.0,0.00021917,2]
[374485804,1753319459047,-400.0,0.00021917,2]
[374485805,1753319459056,-550.98,0.00021917,2]
[374485806,1753319459066,-550.98,0.00021917,2]
[374485807,1753319459076,-1498.41,0.00021917,2]
[374485808,1753319459087,-3471.41,0.00021917,2]
[374485809,1753319459099,-550.98,0.00021917,2]
[374485810,1753319459108,-595.62,0.00021917,2]
[374485811,1753319459119,-550.98,0.00021917,2]
[374485812,1753319459129,-550.98,0.00021917,2]
[374485813,1753319459138,-550.98,0.00021917,2]
[374485814,1753319459147,-550.98,0.00021917,2]
[374485815,1753319459157,-1240.42,0.00021917,2]
[374485816,1753319459166,-400.0,0.00021917,2]
[374485817,1753319459175,-400.0,0.00021917,2]
[374485818,1753319459185,-550.98,0.00021917,2]
[374485819,1753319459195,-300.0,0.00021917,2]
[374485820,1753319459204,-550.98,0.00021917,2]
[374485821,1753319459213,-550.98,0.00021917,2]
[374485822,1753319459223,-550.98,0.00021917,2]
[374485823,1753319459232,-691.66,0.00021917,2]
[374485824,1753319459242,-550.98,0.00021917,2]
[374485825,1753319459251,-641.64,0.00021917,2]
[374485826,1753319459261,-400.0,0.00021917,2]
[374485827,1753319459273,-690.03,0.00021917,2]
[374485828,1753319459285,-550.98,0.00021917,2]
[374485829,1753319459296,-550.98,0.00021917,2]
[374485830,1753319459306,-879.24,0.00021917,2]
[374485831,1753319459317,-806.14,0.00021917,2]
[374485832,1753319459326,-550.98,0.00021917,2]
[374485833,1753319459337,-400.0,0.00021917,2]
[374485834,1753319459348,-400.0,0.00021917,2]
[374485835,1753319459358,-583.29,0.00021917,2]
[374485836,1753319459367,-1088.28,0.00021917,2]
[374485837,1753319459377,-400.0,0.00021917,2]
[374485838,1753319459386,-400.0,0.00021917,2]
[374485839,1753319459395,-1042.7,0.00021917,2]
[374485840,1753319459404,-795.51,0.00021917,2]
[374485841,1753319459414,-400.0,0.00021917,2]
[374485842,1753319459424,-151.0,0.00021917,2]
[374485843,1753319459434,-460.67152736,0.00021917,2]
[374485844,1753319459446,-151.0,0.00021917,2]
[374485845,1753319459457,-151.0,0.00021917,2]
[374485846,1753319459467,-151.0,0.00021917,2]
[374485847,1753319459476,-732.3,0.00021917,2]
[374485848,1753319459486,-151.0,0.00021917,2]
[374485849,1753319459495,-151.0,0.00021917,2]
[374485850,1753319459504,-520.83,0.00021917,2]
[374485851,1753319459514,-698.72,0.00021917,2]
[374485852,1753319459523,-935.98,0.00021917,2]
[374485853,1753319459532,-440.0,0.00021917,2]
[374485854,1753319459542,-151.0,0.00021917,2]
[374485855,1753319459551,-151.0,0.00021917,2]
[374485856,1753319459561,-460.0,0.00021917,2]
[374485857,1753319459570,-489.21,0.00021917,2]
[374485858,1753319459579,-400.0,0.00021917,2]
[374485859,1753319459589,-400.0,0.00021917,2]
[374485860,1753319459598,-400.0,0.00021917,2]
[374485861,1753319459609,-708.86,0.00021917,2]
[374485862,1753319459619,-151.0,0.00021917,2]
[374485863,1753319459631,-400.0,0.00021917,2]
[374485864,1753319459641,-249.505494,0.00021917,2]
[374485865,1753319459651,-400.0,0.00021917,2]
[374485866,1753319459662,-654.95,0.00021917,2]
[374485867,1753319459672,-1610.73,0.00021917,2]
[374485868,1753319459683,-400.0,0.00021917,2]
[374485869,1753319459692,-1218.28,0.00021917,2]
[374485870,1753319459701,-400.0,0.00021917,2]
[374485871,1753319459711,-151.0,0.00021917,2]
[374485872,1753319459721,-400.0,0.00021917,2]
[374485873,1753319459730,-151.0,0.00021917,2]
[374485874,1753319459740,-400.0,0.00021917,2]
[374485875,1753319459750,-400.0,0.00021917,2]
[374485876,1753319459759,-296.89008545,0.00021917,2]
[374485877,1753319459769,-504.1093554,0.00021917,2]
[374485878,1753319459778,-401.36,0.00021917,2]
[374485879,1753319459788,-1294.53,0.00021917,2]
[374485880,1753319459797,-400.0,0.00021917,2]
[374485881,1753319459809,-400.0,0.00021917,2]
[374485882,1753319459818,-1014.71,0.00021917,2]
[374485883,1753319459827,-400.0,0.00021917,2]
[374485884,1753319459837,-677.12,0.00021917,2]
[374485885,1753319459851,-400.0,0.00021917,2]
[374485886,1753319459861,-400.0,0.00021917,2]
[374485887,1753319459873,-960.77,0.00021917,2]
[374485888,1753319459883,-400.0,0.00021917,2]
[374485889,1753319459895,-807.08,0.00021917,2]
[374485890,1753319459906,-624.23,0.00021917,2]
[374485891,1753319459916,-1780.28,0.00021917,2]
[374485892,1753319459926,-684.45,0.00021917,2]
[374485893,1753319459936,-1202.47,0.00021917,2]
[374485894,1753319459947,-400.0,0.00021917,2]
[374485895,1753319459958,-400.0,0.00021917,2]
[374485896,1753319459967,-400.0,0.00021917,2]
[374485897,1753319459977,-400.0,0.00021917,2]
[374485898,1753319459987,-5185.1,0.00021917,2]
[374485899,1753319459997,-400.0,0.00021917,2]
[374485900,1753319460007,-686.61,0.00021917,2]
[374485901,1753319460018,-890.74,0.00021917,2]
[374485902,1753319460028,-3111.59,0.00021917,2]
[374485903,1753319460039,-400.0,0.00021917,2]
[374485904,1753319460050,-328.96986605,0.00021917,2]
[374485905,1753319460065,-461.41,0.00021917,2]
[374485906,1753319460075,-400.0,0.00021917,2]
[374485907,1753319460085,-588.5,0.00021917,2]
[374485908,1753319460095,-400.0,0.00021917,2]
[374485909,1753319460105,-400.0,0.00021917,2]
[374485910,1753319460115,-613.69,0.00021917,2]
[374485911,1753319460125,-400.0,0.00021917,2]
[374485912,1753319460135,-400.0,0.00021917,2]
[374485913,1753319460145,-500.0,0.00021917,2]
[374485914,1753319460155,-500.0,0.00021917,2]
[374485915,1753319460164,-500.0,0.00021917,2]
[374485916,1753319460174,-500.0,0.00021917,2]
[374485917,1753319460184,-500.0,0.00021917,2]
[374485918,1753319460194,-510.17088897,0.00021917,2]
[374485919,1753319460205,-493.03,0.00021917,2]
[374485920,1753319460215,-400.0,0.00021917,2]
[374485921,1753319460224,-400.0,0.00021917,2]
[374485922,1753319460234,-511.75,0.00021917,2]
[374485923,1753319460244,-3100.65,0.00021917,2]
[374485924,1753319460254,-400.0,0.00021917,2]
[374485925,1753319460266,-400.0,0.00021917,2]
[374485926,1753319460276,-1271.55,0.00021917,2]
[374485927,1753319460286,-500.0,0.00021917,2]
[374485928,1753319460295,-400.0,0.00021917,2]
[374485929,1753319460310,-1000.0,0.00021917,2]
[374485930,1753319460321,-400.0,0.00021917,2]
[374485931,1753319460331,-413.0,0.00021917,2]
[374485932,1753319460342,-400.0,0.00021917,2]
[374485933,1753319460352,-427.91,0.00021917,2]
[374485934,1753319460362,-400.0,0.00021917,2]
[374485935,1753319460372,-738.96,0.00021917,2]
[374485936,1753319460382,-400.0,0.00021917,2]
[374485937,1753319460391,-400.0,0.00021917,2]
[374485938,1753319460401,-400.0,0.00021917,2]
[374485939,1753319460411,-400.0,0.00021917,2]
[374485940,1753319460421,-535.81348511,0.00021917,2]
[374485941,1753319460431,-400.0,0.00021917,2]
[374485942,1753319460440,-1446.41,0.00021917,2]
[374485943,1753319460450,-400.0,0.00021917,2]
[374485944,1753319460459,-400.0,0.00021917,2]
[374485945,1753319460469,-536.22,0.00021917,2]
[374485946,1753319460478,-703.57,0.00021917,2]
[374485947,1753319460488,-1290.31,0.00021917,2]
[374485948,1753319460498,-400.0,0.00021917,2]
[374485949,1753319460507,-457.88,0.00021917,2]
[374485950,1753319460517,-504.65,0.00021917,2]
[374485951,1753319460526,-568.27,0.00021917,2]
[374485952,1753319460536,-1167.78,0.00021917,2]
[374485953,1753319460546,-400.0,0.00021917,2]
[374485954,1753319460558,-400.0,0.00021917,2]
[374485955,1753319460578,-480.07,0.00021917,2]
[374485956,1753319460589,-1065.67,0.00021917,2]
[374485957,1753319460599,-400.0,0.00021917,2]
[374485958,1753319460621,-400.0,0.00021917,2]
[374485959,1753319460632,-724.77,0.00021917,2]
[374485960,1753319460644,-400.0,0.00021917,2]
[374485961,1753319460656,-400.0,0.00021917,2]
[374485962,1753319460666,-480.0,0.00021917,2]
[374485963,1753319460676,-9491.6,0.00021917,2]
[374485964,1753319460686,-2411.26,0.00021917,2]
[374485965,1753319460695,-1430.62,0.00021917,2]
[374485966,1753319460703,-400.0,0.00021917,2]
[374485967,1753319460713,-476.31,0.00021917,2]
[374485968,1753319460722,-2715.56,0.00021917,2]
[374485969,1753319460731,-485.0953423,0.00021917,2]
[374485970,1753319460740,-500.0,0.00021917,2]
[374485971,1753319460749,-400.0,0.00021917,2]
[374485972,1753319460757,-500.0,0.00021917,2]
[374485973,1753319460767,-400.0,0.00021917,2]
[374485974,1753319460776,-500.0,0.00021917,2]
[374485975,1753319460786,-400.0,0.00021917,2]
[374485976,1753319460795,-500.0,0.00021917,2]
[374485977,1753319460807,-500.0,0.00021917,2]
[374485978,1753319460817,-1766.45,0.00021917,2]
[374485979,1753319460827,-500.0,0.00021917,2]
[374485980,1753319460837,-2818.42,0.00021917,2]
[374485981,1753319460847,-1119.97,0.00021917,2]
[374485982,1753319460857,-637.35253024,0.00021917,2]
[374485983,1753319460867,-400.0,0.00021917,2]
[374485984,1753319460877,-871.69,0.00021917,2]
[374485985,1753319460888,-500.0,0.00021917,2]
[374485986,1753319460899,-500.0,0.00021917,2]
[374485987,1753319460908,-589.26551128,0.00021917,2]
[374485988,1753319460919,-400.0,0.00021917,2]
[374485989,1753319460928,-1484.12,0.00021917,2]
[374485990,1753319460938,-400.0,0.00021917,2]
[374485991,1753319460947,-400.0,0.00021917,2]
[374485992,1753319460957,-400.0,0.00021917,2]
[374485993,1753319460967,-400.0,0.00021917,2]
[374485994,1753319460977,-524.650431,0.00021917,2]
[374485995,1753319460987,-400.0,0.00021917,2]
[374485996,1753319460996,-731.67,0.00021917,2]
[374485997,1753319461006,-400.0,0.00021917,2]
[374485998,1753319461015,-400.0,0.00021917,2]
[374485999,1753319461025,-400.0,0.00021917,2]
[374486000,1753319461034,-1409.85,0.00021917,2]
[374486001,1753319461044,-400.0,0.00021917,2]
[374486002,1753319461056,-510.65,0.00021917,2]
[374486003,1753319461066,-155.093517,0.00021917,2]
[374486004,1753319461075,-400.0,0.00021917,2]
[374486005,1753319461085,-523.48,0.00021917,2]
[374486006,1753319461094,-400.0,0.00021917,2]
[374486007,1753319461104,-1058.74,0.00021917,2]
[374486008,1753319461113,-400.0,0.00021917,2]
[374486009,1753319461123,-400.0,0.00021917,2]
[374486010,1753319461136,-400.0,0.00021917,2]
[374486011,1753319461146,-2489.45,0.00021917,2]
[374486012,1753319461156,-423.5,0.00021917,2]
[374486013,1753319461165,-400.0,0.00021917,2]
[374486014,1753319461182,-511.81,0.00021917,2]
[374486015,1753319461191,-504.1,0.00021917,2]
[374486016,1753319461202,-400.0,0.00021917,2]
[374486017,1753319461211,-480.0,0.00021917,2]
[374486018,1753319461221,-400.0,0.00021917,2]
[374486019,1753319461230,-400.0,0.00021917,2]
[374486020,1753319461240,-400.0,0.00021917,2]
[374486021,1753319461250,-400.0,0.00021917,2]
[374486022,1753319461259,-3041.27,0.00021917,2]
[374486023,1753319461271,-400.0,0.00021917,2]
[374486024,1753319461280,-400.0,0.00021917,2]
[374486025,1753319461289,-722.78,0.00021917,2]
[374486026,1753319461299,-400.0,0.00021917,2]
[374486027,1753319461313,-400.0,0.00021917,2]
[374486028,1753319461322,-151.0,0.00021917,2]
[374486029,1753319461332,-400.0,0.00021917,2]
[374486030,1753319461341,-151.0,0.00021917,2]
[374486031,1753319461351,-460.0,0.00021917,2]
[374486032,1753319461361,-400.0,0.00021917,2]
[374486033,1753319461370,-763.19,0.00021917,2]
[374486034,1753319461380,-400.0,0.00021917,2]
[374486035,1753319461389,-2198.29,0.00021917,2]
[374486036,1753319461399,-400.0,0.00021917,2]
[374486037,1753319461408,-953.77,0.00021917,2]
[374486038,1753319461417,-400.0,0.00021917,2]
[374486039,1753319461426,-400.0,0.00021917,2]
[374486040,1753319461436,-760.404689,0.00021917,2]
[374486041,1753319461445,-7869.17,0.00021917,2]
[374486042,1753319461454,-400.0,0.00021917,2]
[374486043,1753319461464,-760.404689,0.00021917,2]
[374486044,1753319461474,-760.404689,0.00021917,2]
[374486045,1753319461483,-400.0,0.00021917,2]
[374486046,1753319461492,-760.404689,0.00021917,2]
[374486047,1753319461502,-1223.02,0.00021917,2]
[374486048,1753319461511,-570.314622,0.00021917,2]
[374486049,1753319461521,-760.404689,0.00021917,2]
[374486050,1753319461531,-1704.19,0.00021917,2]
[374486051,1753319461540,-760.404689,0.00021917,2]
[374486052,1753319461549,-570.314622,0.00021917,2]
[374486053,1753319461562,-500.0,0.00021917,2]
[374486054,1753319461572,-500.0,0.00021917,2]
[374486055,1753319461582,-760.404689,0.00021917,2]
[374486056,1753319461591,-570.314622,0.00021917,2]
[374486057,1753319461605,-4137.39,0.00021917,2]
[374486058,1753319461622,-308.63645276,0.00021917,2]
[374486059,1753319461636,-760.404689,0.00021917,2]
[374486060,1753319461648,-915.39,0.00021917,2]
[374486061,1753319461663,-570.314622,0.00021917,2]
[374486062,1753319461677,-1066.64,0.00021917,2]
[374486063,1753319461692,-570.314622,0.00021917,2]
[374486064,1753319461707,-1613.29,0.00021917,2]
[374486065,1753319461724,-151.0,0.00021917,2]
[374486066,1753319461737,-570.314622,0.00021917,2]
[374486067,1753319461750,-151.0,0.00021917,2]
[374486068,1753319461761,-659.99,0.00021917,2]
[374486069,1753319461776,-570.314622,0.00021917,2]
[374486070,1753319461790,-151.602364,0.00021917,2]
[374486071,1753319461804,-760.404689,0.00021917,2]
[374486072,1753319461817,-570.314622,0.00021917,2]
[374486073,1753319461832,-760.404689,0.00021917,2]
[374486074,1753319461846,-570.314622,0.00021917,2]
[374486075,1753319461860,-400.0,0.00021917,2]
[374486076,1753319461875,-760.404689,0.00021917,2]
[374486077,1753319461890,-570.314622,0.00021917,2]
[374486078,1753319461905,-400.0,0.00021917,2]
[374486079,1753319461919,-760.404689,0.00021917,2]
[374486080,1753319461934,-570.314622,0.00021917,2]
[374486081,1753319461953,-570.314622,0.00021917,2]
[374486082,1753319461967,-151.0,0.00021917,2]
[374486083,1753319461981,-760.404689,0.00021917,2]
[374486084,1753319461994,-570.314622,0.00021917,2]
[374486085,1753319462005,-151.0,0.00021917,2]
[374486086,1753319462020,-432.323952,0.00021917,2]
[374486087,1753319462038,-151.0,0.00021917,2]
[374486088,1753319462050,-570.314622,0.00021917,2]
[374486089,1753319462061,-432.323952,0.00021917,2]
[374486090,1753319462073,-760.404689,0.00021917,2]
[374486091,1753319462091,-151.0,0.00021917,2]
[374486092,1753319462106,-462.0033226,0.00021917,2]
[374486093,1753319462116,-400.0,0.00021917,2]
[374486094,1753319462127,-570.314622,0.00021917,2]
[374486095,1753319462142,-432.323952,0.00021917,2]
[374486096,1753319462155,-760.404689,0.00021917,2]
[374486097,1753319462168,-570.314622,0.00021917,2]
[374486098,1753319462181,-760.404689,0.00021917,2]
[374486099,1753319462194,-432.323952,0.00021917,2]
[374486100,1753319462207,-400.0,0.00021917,2]
[374486101,1753319462222,-432.323952,0.00021917,2]
[374486102,1753319462236,-966.14,0.00021917,2]
[374486103,1753319462250,-400.0,0.00021917,2]
[374486104,1753319462265,-432.323952,0.00021917,2]
[374486105,1753319462283,-432.323952,0.00021917,2]
[374486106,1753319462297,-400.0,0.00021917,2]
[374486107,1753319462315,-400.0,0.00021917,2]
[374486108,1753319462329,-432.323952,0.00021917,2]
[374486109,1753319462349,-442.57857502,0.00021917,2]
[374486110,1753319462363,-842.8,0.00021917,2]
[374486111,1753319462376,-432.323952,0.00021917,2]
[374486112,1753319462390,-1299.32,0.00021917,2]
[374486113,1753319462403,-400.0,0.00021917,2]
[374486114,1753319462416,-432.323952,0.00021917,2]
[374486115,1753319462430,-1546.1,0.00021917,2]
[374486116,1753319462443,-432.323952,0.00021917,2]
[374486117,1753319462457,-432.323952,0.00021917,2]
[374486118,1753319462470,-432.323952,0.00021917,2]
[374486119,1753319462485,-658.13,0.00021917,2]
[374486120,1753319462497,-432.323952,0.00021917,2]
[374486121,1753319462512,-400.0,0.00021917,2]
[374486122,1753319462526,-432.323952,0.00021917,2]
[374486123,1753319462539,-3563.72,0.00021917,2]
[374486124,1753319462555,-432.323958,0.00021917,2]
[374486125,1753319462568,-400.0,0.00021917,2]
[374486126,1753319462581,-400.0,0.00021917,2]
[374486127,1753319462594,-400.0,0.00021917,2]
[374486128,1753319462608,-1034.2,0.00021917,2]
[374486129,1753319462620,-151.0,0.00021917,2]
[374486130,1753319462633,-1101.3,0.00021917,2]
[374486131,1753319462646,-151.0,0.00021917,2]
[374486132,1753319462658,-151.0,0.00021917,2]
[374486133,1753319462670,-282.788348,0.00021917,2]
[374486134,1753319462684,-400.0,0.00021917,2]
[374486135,1753319462698,-151.0,0.00021917,2]
[374486136,1753319462711,-151.0,0.00021917,2]
[374486137,1753319462725,-400.0,0.00021917,2]
[374486138,1753319462739,-400.0,0.00021917,2]
[374486139,1753319462752,-151.0,0.00021917,2]
[374486140,1753319462764,-151.0,0.00021917,2]
[374486141,1753319462780,-151.0,0.00021917,2]
[374486142,1753319462802,-2148.84,0.00021917,2]
[374486143,1753319462816,-151.0,0.00021917,2]
[374486144,1753319462832,-151.0,0.00021917,2]
[374486145,1753319462845,-151.0,0.00021917,2]
[374486146,1753319462858,-2014.49,0.00021917,2]
[374486147,1753319462871,-400.0,0.00021917,2]
[374486148,1753319462883,-820.57,0.00021917,2]
[374486149,1753319462895,-151.0,0.00021917,2]
[374486150,1753319462908,-649.51,0.00021917,2]
[374486151,1753319462921,-1433.91,0.00021917,2]
[374486152,1753319462933,-151.0,0.00021917,2]
[374486153,1753319462945,-953.87,0.00021917,2]
[374486154,1753319462957,-151.0,0.00021917,2]
[374486155,1753319462970,-400.0,0.00021917,2]
[374486156,1753319462985,-400.0,0.00021917,2]
[374486157,1753319462997,-299.63740561,0.00021917,2]
[374486158,1753319463017,-151.0,0.00021917,2]
[374486159,1753319463030,-400.0,0.00021917,2]
[374486160,1753319463043,-631.06,0.00021917,2]
[374486161,1753319463056,-597.78,0.00021917,2]
[374486162,1753319463068,-640.69,0.00021917,2]
[374486163,1753319463081,-239.382404,0.00021917,2]
[374486164,1753319463093,-500.0,0.00021917,2]
[374486165,1753319463105,-400.0,0.00021917,2]
[374486166,1753319463118,-1700.99,0.00021917,2]
[374486167,1753319463130,-400.0,0.00021917,2]
[374486168,1753319463142,-2213.95,0.00021917,2]
[374486169,1753319463154,-400.0,0.00021917,2]
[374486170,1753319463167,-1242.59,0.00021917,2]
[374486171,1753319463179,-400.0,0.00021917,2]
[374486172,1753319463191,-315.84108528,0.00021917,2]
[374486173,1753319463204,-400.0,0.00021917,2]
[374486174,1753319463217,-1839.16,0.00021917,2]
[374486175,1753319463229,-1928.74,0.00021917,2]
[374486176,1753319463241,-480.0,0.00021917,2]
[374486177,1753319463253,-400.0,0.00021917,2]
[374486178,1753319463267,-480.0,0.00021917,2]
[374486179,1753319463280,-592.17,0.00021917,2]
[374486180,1753319463292,-596.73,0.00021917,2]
[374486181,1753319463306,-1076.39,0.00021917,2]
[374486182,1753319463318,-400.0,0.00021917,2]
[374486183,1753319463331,-2584.85,0.00021917,2]
[374486184,1753319463343,-400.0,0.00021917,2]
[374486185,1753319463355,-400.0,0.00021917,2]
[374486186,1753319463367,-24063.27,0.00021917,2]
[374486187,1753319463379,-400.0,0.00021917,2]
[374486188,1753319463391,-1862.22,0.00021917,2]
[374486189,1753319463403,-400.0,0.00021917,2]
[374486190,1753319463415,-786.85,0.00021917,2]
[374486191,1753319463427,-626.97,0.00021917,2]
[374486192,1753319463438,-1869.77,0.00021917,2]
[374486193,1753319463450,-400.0,0.00021917,2]
[374486194,1753319463462,-400.0,0.00021917,2]
[374486195,1753319463474,-400.0,0.00021917,2]
[374486196,1753319463486,-400.0,0.00021917,2]
[374486197,1753319463498,-400.0,0.00021917,2]
[374486198,1753319463510,-405.29,0.00021917,2]
[374486199,1753319463522,-400.0,0.00021917,2]
[374486200,1753319463534,-400.0,0.00021917,2]
[374486201,1753319463545,-500.0,0.00021917,2]
[374486202,1753319463558,-400.0,0.00021917,2]
[374486203,1753319463570,-581.95,0.00021917,2]
[374486204,1753319463582,-918.3,0.00021917,2]
[374486205,1753319463594,-4097.85,0.00021917,2]
[374486206,1753319463607,-500.63,0.00021917,2]
[374486207,1753319463619,-400.0,0.00021917,2]
[374486208,1753319463631,-400.0,0.00021917,2]
[374486209,1753319463643,-400.0,0.00021917,2]
[374486210,1753319463655,-999.15,0.00021917,2]
[374486211,1753319463669,-400.0,0.00021917,2]